[Event "Chinese League Division-A 2024"]
[Site "Fuling Chongqing"]
[Date "2024.06.28"]
[Round "3.17"]
[White "Wang, Zihang"]
[Black "Zhao, Jun"]
[Result "0-1"]
[ECO "C55"]
[WhiteElo "2028"]
[BlackElo "2538"]
[Annotator "TA"]
[PlyCount "114"]
[EventDate "2024.06.28"]
[EventType "team-tourn"]
[EventCountry "CHN"]
[SourceTitle "playchess.com"]
[Source "ChessBase"]
[SourceQuality "1"]
[TimeControl "40/5400+30:1800+30"]

{[%evp 20,114,20,16,14,18,20,16,13,6,4,1,14,0,0,-7,0,0,23,-8,0,0,0,-14,-14,-20,0,-8,0,-8,0,0,0,0,-12,-25,-25,-39,-22,-29,-9,-18,-8,-21,-8,-16,-13,-61,-56,-58,-37,-41,-12,-190,-93,-199,-103,-105,17,-180,-185,-193,-141,-186,-164,-193,-193,-272,-282,-372,-372,-357,-368,-318,-309,-616,-610,-683,-681,-688,-676,-664,-629,-902,-902,-741,-727,-891,-892,-904,-904,-873,-456,-29968,-29967,-6087,-6079]} 1. e4 {[%emt 0:00:03]} e5 {[%emt 0:00:06]} 2. Nf3 {[%emt 0:00:10]} Nc6 {[%emt 0:00:11]} 3. Bc4 {[%emt 0:01:11]} Nf6 {[%emt 0:00:11]} 4. d3 {[%emt 0:00:08]} Be7 {[%emt 0:00:06]} 5. O-O {[%emt 0:01:15]} O-O {[%emt 0:00:10]} 6. Re1 {[%emt 0:01:12]} d6 {[%emt 0:00:13]} 7. a4 {[%emt 0:00:58]} Na5 {[%emt 0:00:11]} 8. Ba2 {[%emt 0:00:16] C55: Two Knights: 4 d3, 4 d4 exd4 5 e5 and Max Lange Attack.} c5 {[%emt 0:00:10]} 9. Nc3 {[%emt 0:04:10]} Nc6 {[%emt 0:00:09]} 10. Bg5 {[%emt 0:01:27]} Nb4 {[%emt 0:00:46]} 11. Bc4 {[%emt 0:16:58]} Bg4 {[%emt 0:00:59]} 12. Rc1 {[%emt 0:06:32]} Ne8 {[%emt 0:05:28]} 13. Bxe7 {[%emt 0:09:38]} Qxe7 {[%emt 0:00:06]} 14. h3 {[%emt 0:00:07]} Bd7 $146 {[%emt 0:19:47]} ({Predecessor:} 14... Be6 15. Ne2 Bxc4 16. dxc4 g6 17. Qd2 Nc6 18. Rcd1 Rd8 19. Nc3 Nb4 20. Nd5 Nxd5 21. cxd5 {½-½ Kiolbasa,O (2318)-Unuk,L (2220) EU-chT U18 Girls 2016 (5.1)}) 15. Nd2 {[%emt 0:09:19]} Qg5 {[%emt 0:07:42]} 16. Re3 {[%emt 0:06:37]} Kh8 {[%emt 0:00:23]} 17. Nf1 {[%emt 0:03:31]} f5 {[%emt 0:13:46]} 18. exf5 {[%emt 0:03:20]} Bxf5 {[%emt 0:00:04]} 19. Ne4 {[%emt 0:14:47]} Qd8 {[%emt 0:15:19]} 20. c3 {[%emt 0:01:18]} Nc6 {[%emt 0:00:11]} 21. Ba2 {[%emt 0:02:30]} Nc7 {[%emt 0:01:45]} 22. Rf3 {[%emt 0:08:43]} Qd7 {[%emt 0:15:36]} 23. Ne3 {[%emt 0:03:32]} Bg6 {[%emt 0:01:16]} 24. Rxf8+ {[%emt 0:01:54]} Rxf8 {[%emt 0:00:04]} 25. Qg4 {[%emt 0:00:21]} Qd8 {[%emt 0:00:16]} 26. Rd1 {[%emt 0:02:46]} b6 {[%emt 0:02:35]} 27. Nd5 {[%emt 0:00:44]} Nxd5 {[%emt 0:01:00]} 28. Bxd5 {[%emt 0:00:02]} Ne7 {[%emt 0:00:50]} 29. Bb3 {[%emt 0:00:40]} h6 {[%emt 0:03:28]} 30. Qe2 {[%emt 0:00:48]} Qc7 {[%emt 0:07:28]} 31. Re1 {[%emt 0:00:26]} Qc6 {[%emt 0:01:15]} 32. Nd2 {[%emt 0:00:34]} Nd5 {[%emt 0:00:46]} 33. g3 {[%emt 0:00:31]} (33. Bxd5 $11 Qxd5 34. Ne4) 33... Nf6 $15 {[%emt 0:01:10]} 34. Ne4 {[%emt 0:00:24]} Bh5 {[%emt 0:01:27]} 35. Qd2 {[%emt 0:00:31]} Bf3 {[%emt 0:01:06]} 36. Bc2 $2 {[%emt 0:00:34]} (36. Nxf6 $1 $11 Rxf6 37. d4 exd4 38. cxd4) 36... Qd7 {[%emt 0:01:18]} (36... Nh7 $1 $19 {has better winning chances.} 37. Qe3 (37. Bd1 $2 d5 $19) 37... Qd7) 37. Kh2 {[%emt 0:00:29] [#]} (37. Bd1 $17 Bxd1 38. Qxd1) 37... Ng4+ {[%emt 0:00:37]} (37... Nh7 $1 $19 {[%mdl 512] Hoping for ...d5.} 38. c4 (38. d4 d5) 38... Bxe4 39. dxe4 Ng5) 38. Kg1 $17 {[%emt 0:00:15]} (38. hxg4 $2 Qxg4 $19) 38... d5 {[%emt 0:00:16]} (38... Bxe4 $1 $17 39. hxg4 Bf3) 39. hxg4 $2 {[%emt 0:00:45]} (39. Nxc5 $1 $11 bxc5 40. hxg4) 39... dxe4 $19 {[%emt 0:00:51]} 40. Bd1 {[%emt 0:00:00]} Bxd1 {[%emt 0:00:00]} ({Stronger than} 40... Qxg4 41. Rxe4 Qh5 42. Bxf3 Rxf3 43. Qe2 $14) (40... Qxd3 41. Qxd3 exd3 42. Bxf3 Rxf3 43. Rxe5 $17) ({Black should play} 40... exd3 $19 {Threatens to win with ...Bxd1.} 41. Bxf3 Rxf3 42. Rxe5 Qxg4) 41. Qxd1 {[%emt 0:07:02]} exd3 {[%emt 0:01:39]} 42. Rxe5 {[%emt 0:00:20]} d2 {[%emt 0:00:28]} 43. Re2 {[%emt 0:06:02]} (43. g5 $142) 43... Rd8 $1 $19 {[%emt 0:00:09]} (43... Qxg4 44. Rxd2 Qe4 45. Qc2 Qxc2 46. Rxc2 $17) 44. f3 {[%emt 0:00:07]} Qd5 {[%emt 0:03:52]} 45. Kf2 {[%emt 0:00:38]} c4 {[%emt 0:02:45]} 46. Re4 {[%emt 0:03:26]} Qc5+ {[%emt 0:09:44]} 47. Ke2 $2 {[%emt 0:02:00]} (47. Kg2) 47... Rd3 $1 $19 {[%emt 0:04:25]} 48. b3 {[%emt 0:02:00]} Qf8 {[%emt 0:01:52]} ({Weaker is} 48... Rxc3 49. bxc4 Qd6 (49... Rxc4 50. Rxc4 Qxc4+ 51. Kxd2 $11) 50. Qxd2 Qxd2+ 51. Kxd2 Rxf3 52. Re3 Rf2+ 53. Kc3 $11) 49. Re3 {[%emt 0:00:53]} Rd8 {[%emt 0:00:29]} 50. bxc4 {[%emt 0:00:24] [#]} Qd6 $1 {[%emt 0:00:26]} 51. Kf2 {[%emt 0:09:36]} Qc5 {[%emt 0:00:04]} 52. Ke2 {[%emt 0:00:51]} Qxc4+ {[%emt 0:00:03]} 53. Kf2 {[%emt 0:00:04]} a5 {[%emt 0:01:36]} 54. g5 {[%emt 0:01:30]} Qc5 {[%emt 0:00:40]} 55. Ke2 {[%emt 0:00:56]} Qxg5 {[%emt 0:00:11]} 56. Rd3 {[%emt 0:00:55] [#]} (56. Re4 $19 Qxg3 57. Rd4) 56... Rxd3 $1 {[%emt 0:00:38]} 57. Kxd3 {[%emt 0:00:05]} Qxg3 {[%emt 0:00:05]} 0-1

[Event "Chinese League Division-A 2024"]
[Site "Fuling Chongqing"]
[Date "2024.06.28"]
[Round "3.18"]
[White "Pang, Tao"]
[Black "Shen, Fuyan"]
[Result "1-0"]
[ECO "A11"]
[WhiteElo "2495"]
[BlackElo "1830"]
[Annotator "TA"]
[PlyCount "158"]
[EventDate "2024.06.28"]
[EventType "team-tourn"]
[EventCountry "CHN"]
[SourceTitle "playchess.com"]
[Source "ChessBase"]
[SourceQuality "1"]
[TimeControl "40/5400+30:1800+30"]

{[%evp 9,158,12,10,4,12,16,8,0,2,14,21,0,14,0,0,0,0,-15,0,-6,0,-22,-43,-29,0,-26,0,0,0,-60,0,0,0,-21,-15,-15,-5,-4,-6,-10,0,-9,-5,-4,0,0,0,0,0,0,0,0,0,0,0,0,0,0,0,0,0,0,0,0,0,0,38,34,50,8,29,20,337,353,353,346,341,256,393,547,550,460,505,500,797,726,5181,5389,5493,4270,2727,1900,29950,29947,29959,29960,29955,29963,29963,29962,29965,29964,29964,29964,29963,29963,29965,29966,29966,29955,29962,6749,29975,29976,29977,29977,29977,29978,29978,29979,29979,29975,29977,29978,29979,29979,29979,29980,29980,29981,29981,29982,29983,29984,29984,29983,29985,29986,29986,29987,29987,29987,29987,29988,29988,29988,29988,29989,29989,29990,29990]} 1. Nf3 {[%emt 0:00:03]} d5 {[%emt 0:00:06]} 2. e3 {[%emt 0:00:08]} Nf6 {[%emt 0:00:35]} 3. c4 {[%emt 0:00:35]} c6 {[%emt 0:00:07]} 4. Nc3 {[%emt 0:00:15]} a6 {[%emt 0:00:14]} 5. b3 {[%emt 0:04:57]} Bg4 {[%emt 0:01:28]} 6. h3 {[%emt 0:03:51]} Bxf3 {[%emt 0:03:59]} 7. Qxf3 {[%emt 0:01:34]} e6 {[%emt 0:00:19]} 8. Bb2 {[%emt 0:01:56] The position is equal.} Nbd7 {[%emt 0:08:16]} 9. g4 {[%emt 0:05:08]} Bb4 {[%emt 0:11:00]} 10. cxd5 {[%emt 0:08:48]} cxd5 {[%emt 0:04:16]} 11. Bg2 {[%emt 0:04:55]} O-O {[%emt 0:04:58]} (11... Ne5 $5 12. Qe2 $8 Nfd7 $11) 12. O-O {[%emt 0:00:17]} Rc8 {[%emt 0:03:32]} 13. Rfc1 {[%emt 0:02:11]} h6 {[%emt 0:05:53]} 14. Qe2 {[%emt 0:02:24]} Qe7 {[%emt 0:02:05]} 15. a3 {[%emt 0:01:43]} Bd6 {[%emt 0:00:56]} 16. b4 {[%emt 0:01:35] Dodges Nc5} b5 {[%emt 0:07:38]} 17. d3 {[%emt 0:02:43]} Nb6 {[%emt 0:01:33]} 18. Qd1 {[%emt 0:03:27]} Rc7 {[%emt 0:01:54]} 19. Rc2 {[%emt 0:00:41]} ({White should try} 19. Ne2 $11) 19... Rfc8 {[%emt 0:00:27]} (19... d4 $1 $15 20. exd4 Rfc8) 20. Rac1 $11 {[%emt 0:00:22]} d4 {[%emt 0:03:55]} 21. Ne2 {[%emt 0:05:01]} (21. Ne4 $5 Nxe4 22. Bxd4 Nxf2 (22... Rxc2 23. Rxc2 Nxf2 24. Kxf2 $14) 23. Kxf2 $14) 21... dxe3 {[%emt 0:01:02]} 22. fxe3 {[%emt 0:00:06]} Nfd5 {[%emt 0:03:49]} 23. Rxc7 {[%emt 0:00:28]} Rxc7 {[%emt 0:00:04]} 24. Rxc7 {[%emt 0:06:08]} Bxc7 {[%emt 0:00:25]} 25. Qc1 {[%emt 0:02:08]} Qd6 {[%emt 0:06:56]} 26. Bd4 {[%emt 0:05:59]} Nd7 {[%emt 0:01:44]} 27. Kf2 {[%emt 0:04:30] Active counter play!} Ne5 {[%emt 0:01:35]} 28. Bxe5 {[%emt 0:07:05]} Qxe5 {[%emt 0:00:06]} 29. Bxd5 {[%emt 0:01:50]} exd5 {[%emt 0:00:16][%mdl 4096] Endgame. KQB-KQN} 30. Ke1 {[%emt 0:01:29]} g6 {[%emt 0:07:27]} 31. d4 {[%emt 0:00:57]} Qh2 {[%emt 0:01:15][%cal Oa6a5]} 32. Kd2 {[%emt 0:00:24]} a5 {[%emt 0:05:11] ...axb4 would now be deadly.} 33. Qc6 {[%emt 0:01:43]} axb4 {[%emt 0:00:06]} 34. axb4 {[%emt 0:00:05]} Bd6 {[%emt 0:00:16]} 35. Qxb5 {[%emt 0:08:02]} Qxh3 {[%emt 0:00:14]} 36. Qb6 {[%emt 0:00:09]} Be7 {[%emt 0:06:07]} 37. Qb8+ {[%emt 0:00:52]} Kh7 {[%emt 0:00:15]} 38. Qb7 {[%emt 0:00:41][%csl LRd5,LRe7]} Qh4 {[%emt 0:00:10]} 39. b5 {[%emt 0:01:46]} (39. Kd3 $5) 39... Bb4+ {[%emt 0:02:38]} 40. Kd3 {[%emt 0:00:00]} Qe1 $2 {[%emt 0:00:00][%mdl 8192] Loses the game.} (40... Kg7 $11 {and Black is okay.} 41. Qxd5 Qe1 42. Qe5+ Kh7) 41. Qxf7+ $18 {[%emt 0:03:30]} (41. Qxd5 $2 Qb1+ 42. Kc4 Qa2+ 43. Kxb4 Qxd5 $19) 41... Kh8 {[%emt 0:03:53][%cal Re1d1]} 42. Qe8+ {[%emt 0:00:27]} (42. Qxd5 $2 Qb1+ 43. Kc4 Qa2+ 44. Kxb4 Qxd5 $19) 42... Kg7 {[%emt 0:01:37][%cal Re1b1]} 43. Qd7+ {[%emt 0:00:04]} Kh8 {[%emt 0:00:21]} (43... Kf6 $142 44. Qd8+ (44. Qxd5 $2 Qb1+ 45. Kc4 Qa2+ 46. Kxb4 Qxd5 $19) 44... Be7 45. Qh8+ (45. Qxd5 Qb1+ 46. Kd2 Bb4+ 47. Nc3 Qb2+ 48. Kd1 Qxc3 $17) 45... Kf7 46. Qh7+ (46. Qxh6 Qb1+ 47. Kd2 Bb4+ 48. Nc3 Qb2+ 49. Kd1 Qxc3 $17) 46... Kf6) 44. Qd8+ {[%emt 0:00:32]} (44. Qxd5 $2 Qb1+ 45. Kc4 Qa2+ 46. Kxb4 Qxd5 $19) 44... Kg7 {[%emt 0:00:46][%cal Re1d1] [#]} 45. Qc7+ $1 {[%emt 0:00:05]} (45. Qxd5 $2 Qb1+ 46. Kc4 Qa2+ 47. Kxb4 Qxd5 $19) 45... Kf8 {[%emt 0:03:26] [#]} 46. Qc1 {[%emt 0:01:31] Prevents Qd1+. Threatens to win with Qxe1.} Qxc1 {[%emt 0:07:02]} (46... Qf2 $142 47. Nf4 Kf7 48. Qc7+ (48. Nxd5 Bd6 $18) 48... Be7) 47. Nxc1 {[%emt 0:00:05] KB-KN} h5 {[%emt 0:01:17]} 48. gxh5 {[%emt 0:00:13]} gxh5 {[%emt 0:00:02][%cal Bg6h5,Bh5h4][%mdl 32]} 49. Ke2 {[%emt 0:00:13]} h4 {[%emt 0:06:29]} 50. Nd3 {[%emt 0:01:00]} h3 {[%emt 0:02:09]} 51. Kf3 {[%emt 0:00:25]} (51. Nxb4 $2 {perishes.} h2 52. Nxd5 h1=Q $19 (52... h1=R $2 53. Kd3 $18)) 51... Bd6 {[%emt 0:04:34]} 52. Nf4 {[%emt 0:00:17]} h2 {[%emt 0:00:20]} 53. Kg2 {[%emt 0:00:07]} (53. Nxd5 {gets mated.} h1=Q+ (53... h1=R $2 54. b6 $19) 54. Ke2 Qxd5 55. b6 Qb5+ 56. Kf3 Qxb6 57. Kf2 Qb2+ 58. Kf3 Qc2 59. d5 Kf7 60. e4 Qd3+ 61. Kf2 Qxe4 (61... Bc5+ {leads to mate.} 62. Kg2 Kg6 63. e5 Kh5 64. Kh2 Kh4 65. Kh1 Qh3#) 62. Kf1 Qf3+ (62... Qxd5 63. Ke2 Bc5 64. Ke1 Qa2 65. Kd1 Bf2 66. Kc1 Be3+ 67. Kd1 Qd2#) 63. Kg1 Qe2 64. Kh1 Qh2#) 53... Ke7 {[%emt 0:00:36]} 54. Kxh2 {[%emt 0:02:15]} Bc7 {[%emt 0:00:10]} 55. Kg2 {[%emt 0:00:25]} Kd6 {[%emt 0:00:05]} 56. Kf3 {[%emt 0:00:18]} Bb6 {[%emt 0:01:10]} 57. Ke2 {[%emt 0:01:02]} Bd8 {[%emt 0:02:03]} 58. Kd3 {[%emt 0:00:04]} Bg5 {[%emt 0:01:00]} 59. Ne2 {[%emt 0:00:05]} Bh6 {[%emt 0:04:22]} 60. Nc3 {[%emt 0:00:08]} (60. b6 $142 Kc6 61. Nc3 Bf8 62. b7 Bd6 63. Ke2 Bc7 64. Kf3 Bh2 65. Kg4) 60... Bg7 {[%emt 0:01:13]} 61. b6 {[%emt 0:00:47] White mates.} Bf8 {[%emt 0:00:24]} 62. b7 {[%emt 0:00:07]} Kc7 {[%emt 0:00:04]} 63. Nxd5+ {[%emt 0:00:07]} Kxb7 {[%emt 0:00:03]} 64. e4 {[%emt 0:00:05][%cal Be3e4,Be4e5][%mdl 32]} Kc6 {[%emt 0:00:03]} 65. Kc4 {[%emt 0:00:04]} Ba3 {[%emt 0:00:13]} 66. e5 {[%emt 0:00:10]} Bf8 {[%emt 0:00:09]} 67. Ne3 {[%emt 0:00:26]} Ba3 {[%emt 0:00:10]} 68. Kd3 {[%emt 0:00:05]} Kd7 {[%emt 0:00:15]} 69. Ke4 {[%emt 0:00:03]} Bb2 {[%emt 0:00:08]} 70. d5 {[%emt 0:00:05]} Ke7 {[%emt 0:00:07]} 71. Nf5+ {[%emt 0:00:03]} Kd7 {[%emt 0:00:03]} 72. e6+ {[%emt 0:00:11]} Ke8 {[%emt 0:00:04]} 73. d6 {[%emt 0:00:05]} Bf6 {[%emt 0:00:07]} 74. Kd5 {[%emt 0:00:15]} Kd8 {[%emt 0:00:06]} 75. Nd4 {[%emt 0:00:10]} Kc8 {[%emt 0:00:19]} 76. Nc6 {[%emt 0:00:11]} Bh4 {[%emt 0:00:15]} 77. d7+ {[%emt 0:00:50]} Kc7 {[%emt 0:00:05] [#]} 78. d8=Q+ $1 {[%emt 0:00:10]} Bxd8 {[%emt 0:00:05]} 79. Nxd8 {[%emt 0:00:02]} Kxd8 {[%emt 0:00:05] Weighted Error Value: White=0.08 (flawless) /Black=0.31.  Loses game:     	---       	Black=1      Mistake:       	White=1     	Black=3      Inaccurate:     	White=1     	Black=3      OK:         	White=15    	Black=20     Best:        	White=3     	---        Strong:       	White=1     	---} 1-0

[Event "Chinese League Division-A 2024"]
[Site "Fuling Chongqing"]
[Date "2024.06.28"]
[Round "3.19"]
[White "Zhao, Yunqing"]
[Black "Song, Yuxin"]
[Result "1/2-1/2"]
[ECO "A32"]
[WhiteElo "1986"]
[BlackElo "2383"]
[Annotator "RC"]
[PlyCount "69"]
[EventDate "2024.06.28"]
[EventType "team-tourn"]
[EventCountry "CHN"]
[SourceTitle "playchess.com"]
[Source "ChessBase"]
[SourceQuality "1"]
[TimeControl "40/5400+30:1800+30"]

1. d4 {[%emt 0:00:03]} Nf6 {[%emt 0:00:05]} 2. c4 {[%emt 0:00:05]} e6 {[%emt 0:00:05]} 3. g3 {[%emt 0:00:04]} c5 {[%emt 0:00:06]} 4. Nf3 {[%emt 0:00:07]} cxd4 {[%emt 0:00:12]} 5. Nxd4 {[%emt 0:00:07]} Qc7 {[%emt 0:00:07]} 6. Nc3 {[%emt 0:17:09]} a6 {[%emt 0:00:08]} 7. Qd3 {[%emt 0:07:10]} Nc6 {[%emt 0:00:11]} 8. Nxc6 {[%emt 0:02:11]} Qxc6 {[%emt 0:00:10]} 9. e4 {[%emt 0:01:57]} Bc5 {[%emt 0:10:25]} 10. Be2 {[%emt 0:12:41]} b6 {[%emt 0:03:45]} 11. Bf3 {[%emt 0:06:38]} Bb7 {[%emt 0:00:25]} 12. O-O {[%emt 0:00:25]} h5 {[%emt 0:05:17]} 13. Bg5 {[%emt 0:09:19]} Ng4 {[%emt 0:02:52]} 14. Bf4 {[%emt 0:02:31]} f6 {[%emt 0:12:12]} 15. Qe2 {[%emt 0:11:35]} g5 {[%emt 0:00:30]} 16. Be3 {[%emt 0:02:38]} Nxe3 {[%emt 0:06:06]} 17. fxe3 {[%emt 0:02:07]} g4 {[%emt 0:02:33]} 18. Bg2 {[%emt 0:00:31]} Rh6 {[%emt 0:02:12]} 19. Nd1 {[%emt 0:11:17]} Bd6 {[%emt 0:02:03]} 20. Nf2 {[%emt 0:01:11]} Qc7 {[%emt 0:07:19]} 21. Nd3 {[%emt 0:02:20]} Bc6 {[%emt 0:05:52]} 22. Rad1 {[%emt 0:05:52]} Qb7 {[%emt 0:01:40]} 23. Nf2 {[%emt 0:02:06]} Ke7 {[%emt 0:02:53]} 24. Qd2 {[%emt 0:01:05]} Qc7 {[%emt 0:00:09]} 25. b4 {[%emt 0:01:17]} Rg8 {[%emt 0:01:24]} 26. Nd3 {[%emt 0:00:29]} Rg5 {[%emt 0:02:53]} 27. Qc3 {[%emt 0:00:33]} h4 {[%emt 0:00:38]} 28. Nf4 {[%emt 0:00:29]} Qb7 {[%emt 0:05:05]} 29. Rd2 {[%emt 0:00:32]} Re5 {[%emt 0:05:04]} 30. Nd5+ {[%emt 0:00:28]} exd5 {[%emt 0:15:31]} 31. exd5 {[%emt 0:00:05]} Bb5 {[%emt 0:00:02]} 32. cxb5 {[%emt 0:00:41]} axb5 {[%emt 0:00:01]} 33. Qd4 {[%emt 0:00:35]} hxg3 {[%emt 0:01:11]} 34. hxg3 {[%emt 0:00:04]} Qb8 {[%emt 0:00:07]} 35. Rf4 {[%emt 0:00:56]} 1/2-1/2

[Event "Chinese League Division-A 2024"]
[Site "Fuling Chongqing"]
[Date "2024.06.28"]
[Round "3.20"]
[White "Li, Xueyi"]
[Black "Du, Yuxin"]
[Result "1-0"]
[ECO "D35"]
[WhiteElo "2209"]
[BlackElo "1960"]
[Annotator "RC"]
[PlyCount "89"]
[EventDate "2024.06.28"]
[EventType "team-tourn"]
[EventCountry "CHN"]
[SourceTitle "playchess.com"]
[Source "ChessBase"]
[SourceQuality "1"]
[TimeControl "40/5400+30:1800+30"]

1. d4 {[%emt 0:00:03]} Nf6 {[%emt 0:00:07]} 2. c4 {[%emt 0:00:07]} e6 {[%emt 0:00:10]} 3. Nf3 {[%emt 0:00:30]} d5 {[%emt 0:00:56]} 4. Nc3 {[%emt 0:00:08]} Be7 {[%emt 0:04:50]} 5. cxd5 {[%emt 0:00:07]} exd5 {[%emt 0:00:09]} 6. Bf4 {[%emt 0:00:03]} O-O {[%emt 0:01:41]} 7. h3 {[%emt 0:00:08]} c6 {[%emt 0:01:57]} 8. e3 {[%emt 0:00:39]} Nbd7 {[%emt 0:02:00]} 9. Bd3 {[%emt 0:00:20]} Re8 {[%emt 0:00:45]} 10. O-O {[%emt 0:01:44]} Nf8 {[%emt 0:02:24]} 11. Ne5 {[%emt 0:04:25]} Ng6 {[%emt 0:07:26]} 12. Bh2 {[%emt 0:04:05]} Nxe5 {[%emt 0:17:25]} 13. dxe5 {[%emt 0:01:02]} Nd7 {[%emt 0:00:36]} 14. e4 {[%emt 0:00:55]} d4 {[%emt 0:03:33]} 15. Ne2 {[%emt 0:01:25]} Nc5 {[%emt 0:12:35]} 16. f4 {[%emt 0:00:18]} b6 {[%emt 0:02:45]} 17. Kh1 {[%emt 0:36:32]} a5 {[%emt 0:04:34]} 18. f5 {[%emt 0:08:24]} Bg5 {[%emt 0:09:22]} 19. Bc4 {[%emt 0:19:10]} Be3 {[%emt 0:18:21]} 20. Ng3 {[%emt 0:02:09]} Qh4 {[%emt 0:01:49]} 21. e6 {[%emt 0:03:39]} fxe6 {[%emt 0:01:42]} 22. f6 {[%emt 0:00:08]} gxf6 {[%emt 0:02:18]} 23. Nf5 {[%emt 0:05:02]} Qg5 {[%emt 0:00:51]} 24. e5 {[%emt 0:04:16]} Ne4 {[%emt 0:02:36]} 25. exf6 {[%emt 0:00:46]} Nxf6 {[%emt 0:01:13]} 26. Nxe3 {[%emt 0:00:15]} dxe3 {[%emt 0:00:22]} 27. Bf4 {[%emt 0:00:22]} Qc5 {[%emt 0:00:51]} 28. Rc1 {[%emt 0:00:42]} Qh5 {[%emt 0:00:34]} 29. Rf3 {[%emt 0:02:01]} Kh8 {[%emt 0:00:33]} 30. Bxe3 {[%emt 0:00:28]} Qg6 {[%emt 0:00:31]} 31. Qf1 {[%emt 0:01:09]} Nd7 {[%emt 0:00:27]} 32. Rd1 {[%emt 0:02:11]} c5 {[%emt 0:00:33]} 33. Bd3 {[%emt 0:00:27]} Qg8 {[%emt 0:00:31]} 34. Be4 {[%emt 0:00:44]} Ba6 {[%emt 0:00:29]} 35. Qe1 {[%emt 0:00:54]} Rad8 {[%emt 0:00:25]} 36. Rg3 {[%emt 0:00:48]} Qf7 {[%emt 0:00:25]} 37. Bg5 {[%emt 0:00:28]} Rc8 {[%emt 0:00:40]} 38. Rf3 {[%emt 0:00:18]} Qg7 {[%emt 0:00:31]} 39. Rxd7 {[%emt 0:00:27]} Qxd7 {[%emt 0:00:29]} 40. Bf6+ {[%emt 0:00:00]} Kg8 {[%emt 0:00:00]} 41. Qg3+ {[%emt 0:00:09]} Kf8 {[%emt 0:00:57]} 42. Bh4+ {[%emt 0:00:24]} Qf7 {[%emt 0:00:18]} 43. Rxf7+ {[%emt 0:00:08]} Kxf7 {[%emt 0:00:07]} 44. Qf4+ {[%emt 0:00:10]} Kg8 {[%emt 0:00:30]} 45. Qg5+ {[%emt 0:00:30]} 1-0

[Event "Chinese League Division-A 2024"]
[Site "Fuling Chongqing"]
[Date "2024.06.28"]
[Round "3.21"]
[White "Chen, Yuan"]
[Black "Chen, Qi b"]
[Result "1/2-1/2"]
[ECO "D35"]
[WhiteElo "2294"]
[BlackElo "2481"]
[Annotator "TA"]
[PlyCount "40"]
[EventDate "2024.06.28"]
[EventType "team-tourn"]
[EventCountry "CHN"]
[SourceTitle "playchess.com"]
[Source "ChessBase"]
[SourceQuality "1"]
[TimeControl "40/5400+30:1800+30"]

{[%evp 10,40,22,10,13,15,34,0,29,21,34,27,25,14,22,22,14,10,19,6,14,5,18,15,11,15,16,0,19,0,37,0,8]} 1. d4 {[%emt 0:00:07]} Nf6 {[%emt 0:00:09]} 2. c4 {[%emt 0:00:14]} e6 {[%emt 0:00:23]} 3. Nf3 {[%emt 0:00:18]} d5 {[%emt 0:01:14]} 4. Nc3 {[%emt 0:00:18]} Nbd7 {[%emt 0:00:11]} 5. cxd5 {[%emt 0:01:07]} exd5 {[%emt 0:00:03]} 6. Bf4 {[%emt 0:00:16]} Nb6 {[%emt 0:02:33]} 7. e3 {[%emt 0:00:55]} Bd6 {[%emt 0:05:36]} 8. Ne5 {[%emt 0:05:06]} O-O {[%emt 0:02:32]} 9. Bd3 {[%emt 0:00:27]} Re8 {[%emt 0:01:44][%cal Of6g4]} 10. O-O {[%emt 0:05:30]} Nbd7 {[%emt 0:04:07]} 11. Nxd7 {[%emt 0:00:46]} Qxd7 {[%emt 0:00:05]} 12. Bxd6 {[%emt 0:06:58]} Qxd6 {[%emt 0:00:05]} 13. Qf3 {[%emt 0:00:48]} c6 {[%emt 0:01:34]} 14. a3 {[%emt 0:01:21]} Bd7 {[%emt 0:10:42]} 15. Rfc1 {[%emt 0:02:51]} (15. Qg3 {simplifies} Qxg3 16. hxg3 Reb8 17. b4) 15... Rec8 {[%emt 0:03:52]} 16. Qg3 {[%emt 0:07:06]} Ne8 {[%emt 0:13:56]} 17. Qh4 {[%emt 0:03:43]} Nf6 {[%emt 0:00:58]} 18. Qg3 {[%emt 0:01:20]} Ne8 {[%emt 0:00:04]} 19. Qh4 {[%emt 0:00:34]} Nf6 {[%emt 0:00:03]} 20. Qg3 {[%emt 0:00:18]} Ne8 {[%emt 0:00:43] An uneventful encounter.   Weighted Error Value: White=0.10 (very precise) /Black=0.06 (flawless) .  Inaccurate:     	White=2     	Black=1      OK:         	White=5     	Black=5} 1/2-1/2